[Event "Titled Tuesday Blitz October 11 Late 2022"]
[White "miragha_yev"]
[Black "Vovk, Orest"]
[BlackFideId "14113490"]
[WhiteElo "2782"]
[BlackElo "2215"]
[Result "1-0"]
[Round "01"]
[TimeControl "180+1"]
[Date "2022.10.12"]
[WhiteClock "0:02:27"]
[BlackClock "0:02:17"]

1. c4 {[%clk 0:03:00]}  g5 {[%clk 0:02:57]} 2. d4 {[%clk 0:02:59]}  h6 {[%clk 0:02:57]} 3. Nc3 {[%clk 0:02:59]}  Bg7 {[%clk 0:02:57]} 4. h4 {[%clk 0:02:57]}  c5 {[%clk 0:02:56]} 5. dxc5 {[%clk 0:02:55]}  Bxc3+ {[%clk 0:02:55]} 6. bxc3 {[%clk 0:02:56]}  Qa5 {[%clk 0:02:55]} 7. Qd4 {[%clk 0:02:55]}  Nf6 {[%clk 0:02:49]} 8. hxg5 {[%clk 0:02:55]}  Nc6 {[%clk 0:02:50]} 9. Qe3 {[%clk 0:02:54]}  Ng4 {[%clk 0:02:48]} 10. Qg3 {[%clk 0:02:48]}  Nge5 {[%clk 0:02:41]} 11. gxh6 {[%clk 0:02:46]}  Qxc5 {[%clk 0:02:38]} 12. Qg7 {[%clk 0:02:39]}  Ng6 {[%clk 0:02:32]} 13. h7 {[%clk 0:02:39]}  Rf8 {[%clk 0:02:26]} 14. h8=Q {[%clk 0:02:35]}  Qxc4 {[%clk 0:02:19]} 15. Qhxf8+ {[%clk 0:02:28]}  Nxf8 {[%clk 0:02:19]} 16. Rh8 {[%clk 0:02:28]}  Qxc3+ {[%clk 0:02:17]} 17. Qxc3 {[%clk 0:02:27]} 1-0


[Site "https://www.chess.com"]

[Event "Titled Tuesday Blitz October 11 Late 2022"]
[White "Adury, Anant"]
[Black "Wieczorek, Oskar"]
[WhiteFideId "30964687"]
[BlackFideId "1133950"]
[WhiteElo "2314"]
[BlackElo "2404"]
[Result "0-1"]
[Round "02"]
[TimeControl "180+1"]
[Date "2022.10.12"]
[WhiteClock "0:00:01"]
[BlackClock "0:01:06"]

1. d4 {[%clk 0:03:00]}  Nf6 {[%clk 0:02:59]} 2. c4 {[%clk 0:02:58]}  c5 {[%clk 0:03:00]} 3. d5 {[%clk 0:02:58]}  g6 {[%clk 0:03:00]} 4. Nc3 {[%clk 0:02:58]}  Bg7 {[%clk 0:03:01]} 5. e4 {[%clk 0:02:58]}  d6 {[%clk 0:03:02]} 6. Bd3 {[%clk 0:02:50]}  O-O {[%clk 0:03:02]} 7. Nf3 {[%clk 0:02:51]}  Bg4 {[%clk 0:03:02]} 8. Bf4 {[%clk 0:02:46]}  e6 {[%clk 0:03:00]} 9. O-O {[%clk 0:02:44]}  Nh5 {[%clk 0:02:58]} 10. Be3 {[%clk 0:02:39]}  Nd7 {[%clk 0:02:57]} 11. h3 {[%clk 0:02:27]}  Bxf3 {[%clk 0:02:57]} 12. Qxf3 {[%clk 0:02:27]}  Ne5 {[%clk 0:02:50]} 13. Qd1 {[%clk 0:02:21]}  Nxd3 {[%clk 0:02:48]} 14. Qxd3 {[%clk 0:02:21]}  e5 {[%clk 0:02:40]} 15. f3 {[%clk 0:02:03]}  f5 {[%clk 0:02:39]} 16. a3 {[%clk 0:01:45]}  Qh4 {[%clk 0:02:38]} 17. Bf2 {[%clk 0:01:44]}  Qg5 {[%clk 0:02:35]} 18. Be3 {[%clk 0:01:29]}  Nf4 {[%clk 0:02:25]} 19. Bxf4 {[%clk 0:01:29]}  exf4 {[%clk 0:02:26]} 20. exf5 {[%clk 0:01:28]}  gxf5 {[%clk 0:02:15]} 21. Nb5 {[%clk 0:01:14]}  Qe7 {[%clk 0:02:05]} 22. Rae1 {[%clk 0:01:07]}  Be5 {[%clk 0:02:05]} 23. Re2 {[%clk 0:01:04]}  a6 {[%clk 0:02:02]} 24. Nc3 {[%clk 0:01:03]}  Kh8 {[%clk 0:01:59]} 25. Rfe1 {[%clk 0:01:03]}  Qg7 {[%clk 0:01:59]} 26. Nd1 {[%clk 0:00:57]}  Rf6 {[%clk 0:01:51]} 27. b4 {[%clk 0:00:31]}  b6 {[%clk 0:01:40]} 28. bxc5 {[%clk 0:00:27]}  bxc5 {[%clk 0:01:40]} 29. Qc2 {[%clk 0:00:21]}  Rg6 {[%clk 0:01:38]} 30. Qxf5 {[%clk 0:00:16]}  Rg8 {[%clk 0:01:36]} 31. Qc2 {[%clk 0:00:16]}  Rg3 {[%clk 0:01:35]} 32. Kh1 {[%clk 0:00:15]}  Qh6 {[%clk 0:01:32]} 33. Nf2 {[%clk 0:00:13]}  Rxg2 {[%clk 0:01:30]} 34. Qf5 {[%clk 0:00:09]}  R2g5 {[%clk 0:01:19]} 35. Qe6 {[%clk 0:00:04]}  R5g6 {[%clk 0:01:09]} 36. Qd7 {[%clk 0:00:04]}  Qh4 {[%clk 0:01:07]} 37. Re4 {[%clk 0:00:01]}  Qxf2 {[%clk 0:01:06]} 0-1


[Site "https://www.chess.com"]

[Event "Titled Tuesday Blitz October 11 Late 2022"]
[White "Aghasiyev, Kamal"]
[Black "Vazquez, Guillermo"]
[WhiteFideId "13402854"]
[BlackFideId "3702308"]
[WhiteElo "2341"]
[BlackElo "2543"]
[Result "0-1"]
[Round "02"]
[TimeControl "180+1"]
[Date "2022.10.11"]
[WhiteClock "0:00:36"]
[BlackClock "0:00:33"]

1. d4 {[%clk 0:03:00]}  d5 {[%clk 0:02:59]} 2. c4 {[%clk 0:03:00]}  e6 {[%clk 0:03:00]} 3. Nf3 {[%clk 0:02:57]}  a6 {[%clk 0:03:00]} 4. cxd5 {[%clk 0:02:51]}  exd5 {[%clk 0:03:01]} 5. Nc3 {[%clk 0:02:50]}  h6 {[%clk 0:03:00]} 6. Bf4 {[%clk 0:02:51]}  Nf6 {[%clk 0:03:00]} 7. e3 {[%clk 0:02:51]}  Bd6 {[%clk 0:03:00]} 8. Bd3 {[%clk 0:02:48]}  Bxf4 {[%clk 0:02:59]} 9. exf4 {[%clk 0:02:48]}  Bg4 {[%clk 0:02:59]} 10. O-O {[%clk 0:02:46]}  O-O {[%clk 0:02:58]} 11. h3 {[%clk 0:02:46]}  Bxf3 {[%clk 0:02:58]} 12. Qxf3 {[%clk 0:02:46]}  Nc6 {[%clk 0:02:58]} 13. Ne2 {[%clk 0:02:28]}  Re8 {[%clk 0:02:58]} 14. Rac1 {[%clk 0:02:28]}  Qd6 {[%clk 0:02:54]} 15. a3 {[%clk 0:02:26]}  Ne4 {[%clk 0:02:49]} 16. Rfd1 {[%clk 0:02:25]}  Qf6 {[%clk 0:02:35]} 17. Bb1 {[%clk 0:02:21]}  Rad8 {[%clk 0:02:29]} 18. f5 {[%clk 0:02:04]}  Qh4 {[%clk 0:02:02]} 19. Qf4 {[%clk 0:02:02]}  Qe7 {[%clk 0:01:35]} 20. f3 {[%clk 0:01:51]}  Nf6 {[%clk 0:01:21]} 21. Ng3 {[%clk 0:01:51]}  Qd7 {[%clk 0:01:15]} 22. Bc2 {[%clk 0:01:36]}  Na7 {[%clk 0:01:07]} 23. Bd3 {[%clk 0:01:26]}  Re7 {[%clk 0:01:03]} 24. Re1 {[%clk 0:01:15]}  Rde8 {[%clk 0:01:03]} 25. Rxe7 {[%clk 0:01:12]}  Rxe7 {[%clk 0:01:04]} 26. Nf1 {[%clk 0:00:59]}  Nc6 {[%clk 0:00:54]} 27. Nd2 {[%clk 0:00:55]}  Qe8 {[%clk 0:00:45]} 28. Nb3 {[%clk 0:00:44]}  Re1+ {[%clk 0:00:43]} 29. Kh2 {[%clk 0:00:44]}  Rxc1 {[%clk 0:00:42]} 30. Qxc1 {[%clk 0:00:43]}  Qe7 {[%clk 0:00:36]} 31. Qf4 {[%clk 0:00:40]}  Nh5 {[%clk 0:00:35]} 32. Qh4 {[%clk 0:00:36]}  Qxh4 {[%clk 0:00:33]} 0-1


[Site "https://www.chess.com"]

[Event "Titled Tuesday Blitz October 11 Late 2022"]
[White "Aldokhin, Ivan"]
[Black "Jean Louis, Marckens"]
[WhiteFideId "24115720"]
[BlackFideId "11900270"]
[WhiteElo "2313"]
[BlackElo "2030"]
[Result "1-0"]
[Round "02"]
[TimeControl "180+1"]
[Date "2022.10.12"]
[WhiteClock "0:00:41"]
[BlackClock "0:00:14"]

1. e4 {[%clk 0:02:58]}  e6 {[%clk 0:02:59]} 2. d4 {[%clk 0:02:58]}  d5 {[%clk 0:02:57]} 3. Nc3 {[%clk 0:02:58]}  Nf6 {[%clk 0:02:56]} 4. e5 {[%clk 0:02:58]}  Nfd7 {[%clk 0:02:56]} 5. f4 {[%clk 0:02:59]}  a6 {[%clk 0:02:55]} 6. Nf3 {[%clk 0:02:59]}  c5 {[%clk 0:02:55]} 7. Be3 {[%clk 0:03:00]}  Nc6 {[%clk 0:02:55]} 8. Qd2 {[%clk 0:02:58]}  cxd4 {[%clk 0:02:55]} 9. Nxd4 {[%clk 0:02:58]}  Bc5 {[%clk 0:02:55]} 10. O-O-O {[%clk 0:02:58]}  Bxd4 {[%clk 0:02:55]} 11. Bxd4 {[%clk 0:02:58]}  Nxd4 {[%clk 0:02:56]} 12. Qxd4 {[%clk 0:02:58]}  Qb6 {[%clk 0:02:56]} 13. Qxb6 {[%clk 0:02:43]}  Nxb6 {[%clk 0:02:55]} 14. Kd2 {[%clk 0:02:43]}  Bd7 {[%clk 0:02:55]} 15. Ke3 {[%clk 0:02:43]}  g6 {[%clk 0:02:52]} 16. Kd4 {[%clk 0:02:42]}  Ke7 {[%clk 0:02:51]} 17. Bd3 {[%clk 0:02:39]}  h5 {[%clk 0:02:50]} 18. g3 {[%clk 0:02:39]}  Rac8 {[%clk 0:02:49]} 19. b3 {[%clk 0:02:38]}  Rc7 {[%clk 0:02:47]} 20. Ne2 {[%clk 0:02:27]}  Rhc8 {[%clk 0:02:46]} 21. a4 {[%clk 0:02:24]}  Be8 {[%clk 0:02:24]} 22. h3 {[%clk 0:02:22]}  Nd7 {[%clk 0:02:13]} 23. Ke3 {[%clk 0:02:13]}  Nc5 {[%clk 0:02:10]} 24. Nd4 {[%clk 0:02:13]}  Bd7 {[%clk 0:01:54]} 25. g4 {[%clk 0:02:08]}  Rh8 {[%clk 0:01:52]} 26. Rdf1 {[%clk 0:01:57]}  Rcc8 {[%clk 0:01:50]} 27. f5 {[%clk 0:01:56]}  gxf5 {[%clk 0:01:47]} 28. gxf5 {[%clk 0:01:56]}  Rcg8 {[%clk 0:01:46]} 29. f6+ {[%clk 0:01:54]}  Kd8 {[%clk 0:01:45]} 30. Rhg1 {[%clk 0:01:51]}  Be8 {[%clk 0:01:43]} 31. Nf3 {[%clk 0:01:45]}  b5 {[%clk 0:01:37]} 32. axb5 {[%clk 0:01:43]}  Bxb5 {[%clk 0:01:36]} 33. Kd4 {[%clk 0:01:25]}  Bxd3 {[%clk 0:01:36]} 34. cxd3 {[%clk 0:01:18]}  Nxb3+ {[%clk 0:01:36]} 35. Kc3 {[%clk 0:01:18]}  Nc5 {[%clk 0:01:32]} 36. Ng5 {[%clk 0:01:09]}  Ke8 {[%clk 0:01:32]} 37. Rb1 {[%clk 0:01:03]}  h4 {[%clk 0:00:33]} 38. Kd4 {[%clk 0:00:49]}  Nd7 {[%clk 0:00:25]} 39. Rgc1 {[%clk 0:00:48]}  Nxe5 {[%clk 0:00:15]} 40. Kxe5 {[%clk 0:00:40]}  Rxg5+ {[%clk 0:00:14]} 41. Kd6 {[%clk 0:00:41]} 1-0


[Site "https://www.chess.com"]

[Event "Titled Tuesday Blitz October 11 Late 2022"]
[White "Alexikov, Alexander"]
[Black "Hirneise, Jens"]
[WhiteFideId "14103958"]
[BlackFideId "24614734"]
[WhiteElo "2222"]
[BlackElo "2344"]
[Result "0-1"]
[Round "02"]
[TimeControl "180+1"]
[Date "2022.10.12"]
[WhiteClock "0:00:04"]
[BlackClock "0:00:31"]

1. e4 {[%clk 0:03:00]}  g6 {[%clk 0:02:42]} 2. d4 {[%clk 0:02:59]}  Bg7 {[%clk 0:02:41]} 3. Nf3 {[%clk 0:02:59]}  c5 {[%clk 0:02:40]} 4. d5 {[%clk 0:02:58]}  b5 {[%clk 0:02:29]} 5. a4 {[%clk 0:02:54]}  b4 {[%clk 0:02:21]} 6. c4 {[%clk 0:02:52]}  bxc3 {[%clk 0:02:18]} 7. bxc3 {[%clk 0:02:49]}  Ba6 {[%clk 0:02:15]} 8. Bb5 {[%clk 0:02:44]}  Bxb5 {[%clk 0:02:08]} 9. axb5 {[%clk 0:02:43]}  Qb6 {[%clk 0:02:06]} 10. Qd3 {[%clk 0:02:37]}  Nf6 {[%clk 0:02:00]} 11. h3 {[%clk 0:02:33]}  O-O {[%clk 0:01:54]} 12. Be3 {[%clk 0:02:29]}  d6 {[%clk 0:01:52]} 13. O-O {[%clk 0:02:28]}  Nbd7 {[%clk 0:01:42]} 14. Nbd2 {[%clk 0:02:25]}  Ne8 {[%clk 0:01:38]} 15. Ra6 {[%clk 0:02:21]}  Qb7 {[%clk 0:01:36]} 16. c4 {[%clk 0:02:18]}  Nc7 {[%clk 0:01:31]} 17. Ra5 {[%clk 0:02:07]}  a6 {[%clk 0:01:30]} 18. bxa6 {[%clk 0:01:57]}  Rxa6 {[%clk 0:01:28]} 19. Rxa6 {[%clk 0:01:54]}  Nxa6 {[%clk 0:01:29]} 20. Bg5 {[%clk 0:01:42]}  Re8 {[%clk 0:01:24]} 21. Qb3 {[%clk 0:01:37]}  Nb4 {[%clk 0:01:21]} 22. Nb1 {[%clk 0:01:27]}  Qa6 {[%clk 0:01:18]} 23. Nc3 {[%clk 0:01:25]}  Nb6 {[%clk 0:01:12]} 24. Nb5 {[%clk 0:01:24]}  Qa4 {[%clk 0:00:59]} 25. Qxa4 {[%clk 0:01:12]}  Nxa4 {[%clk 0:01:00]} 26. Rc1 {[%clk 0:01:07]}  Kf8 {[%clk 0:00:58]} 27. Bf4 {[%clk 0:00:57]}  Ra8 {[%clk 0:00:53]} 28. Bd2 {[%clk 0:00:54]}  Nd3 {[%clk 0:00:50]} 29. Rb1 {[%clk 0:00:53]}  Nab2 {[%clk 0:00:44]} 30. e5 {[%clk 0:00:43]}  Nxc4 {[%clk 0:00:41]} 31. exd6 {[%clk 0:00:37]}  Nxd6 {[%clk 0:00:40]} 32. Nxd6 {[%clk 0:00:33]}  exd6 {[%clk 0:00:40]} 33. Be3 {[%clk 0:00:31]}  c4 {[%clk 0:00:40]} 34. Rb7 {[%clk 0:00:25]}  Rc8 {[%clk 0:00:37]} 35. Ng5 {[%clk 0:00:24]}  Ne5 {[%clk 0:00:32]} 36. Nxh7+ {[%clk 0:00:23]}  Kg8 {[%clk 0:00:31]} 37. Ng5 {[%clk 0:00:22]}  c3 {[%clk 0:00:31]} 38. Ne4 {[%clk 0:00:21]}  c2 {[%clk 0:00:31]} 39. Bc1 {[%clk 0:00:20]}  Nd3 {[%clk 0:00:31]} 40. Nxd6 {[%clk 0:00:17]}  Nxc1 {[%clk 0:00:30]} 41. Nxc8 {[%clk 0:00:16]}  Ne2+ {[%clk 0:00:30]} 42. Kf1 {[%clk 0:00:14]}  c1=Q+ {[%clk 0:00:31]} 43. Kxe2 {[%clk 0:00:12]}  Qxc8 {[%clk 0:00:32]} 44. Rb4 {[%clk 0:00:04]}  Qc2+ {[%clk 0:00:31]} 0-1


[Site "https://www.chess.com"]

[Event "Titled Tuesday Blitz October 11 Late 2022"]
[White "Ambartsumova, Karina"]
[Black "Babazada, Khazar"]
[WhiteFideId "4166299"]
[BlackFideId "13413554"]
[WhiteElo "2591"]
[BlackElo "2875"]
[Result "1-0"]
[Round "02"]
[TimeControl "180+1"]
[Date "2022.10.12"]
[WhiteClock "0:00:09"]
[BlackClock "0:00:18"]

1. d4 {[%clk 0:03:00]}  a6 {[%clk 0:02:56]} 2. c4 {[%clk 0:02:58]}  c6 {[%clk 0:02:57]} 3. Nc3 {[%clk 0:02:57]}  e6 {[%clk 0:02:57]} 4. e4 {[%clk 0:02:57]}  d6 {[%clk 0:02:57]} 5. Be3 {[%clk 0:02:55]}  b6 {[%clk 0:02:58]} 6. Qd2 {[%clk 0:02:55]}  Nd7 {[%clk 0:02:58]} 7. f4 {[%clk 0:02:53]}  Bb7 {[%clk 0:02:59]} 8. Nf3 {[%clk 0:02:53]}  h5 {[%clk 0:02:58]} 9. Bd3 {[%clk 0:02:50]}  h4 {[%clk 0:02:58]} 10. e5 {[%clk 0:02:48]}  d5 {[%clk 0:02:55]} 11. O-O {[%clk 0:02:45]}  g6 {[%clk 0:02:55]} 12. Qc2 {[%clk 0:02:42]}  Qe7 {[%clk 0:02:47]} 13. a3 {[%clk 0:02:37]}  Nh6 {[%clk 0:02:46]} 14. b4 {[%clk 0:02:30]}  Nf5 {[%clk 0:02:44]} 15. Qe2 {[%clk 0:02:25]}  b5 {[%clk 0:02:40]} 16. cxd5 {[%clk 0:02:15]}  cxd5 {[%clk 0:02:36]} 17. Rfb1 {[%clk 0:02:07]}  Rc8 {[%clk 0:02:28]} 18. Bd2 {[%clk 0:02:03]}  Nb8 {[%clk 0:02:02]} 19. a4 {[%clk 0:01:54]}  Nc6 {[%clk 0:02:01]} 20. axb5 {[%clk 0:01:39]}  axb5 {[%clk 0:01:36]} 21. Nxb5 {[%clk 0:01:39]}  Qd8 {[%clk 0:01:26]} 22. Na7 {[%clk 0:01:35]}  Nxa7 {[%clk 0:01:20]} 23. Rxa7 {[%clk 0:01:36]}  Qb6 {[%clk 0:01:20]} 24. Bb5+ {[%clk 0:01:19]}  Kd8 {[%clk 0:01:13]} 25. Rxb7 {[%clk 0:01:07]}  Qxb7 {[%clk 0:01:11]} 26. Ba6 {[%clk 0:01:07]}  Qb6 {[%clk 0:01:06]} 27. Bxc8 {[%clk 0:01:07]}  Kxc8 {[%clk 0:01:06]} 28. Qd3 {[%clk 0:01:01]}  Be7 {[%clk 0:01:00]} 29. Ra1 {[%clk 0:00:56]}  Kb7 {[%clk 0:00:58]} 30. b5 {[%clk 0:00:49]}  Ra8 {[%clk 0:00:59]} 31. Rc1 {[%clk 0:00:41]}  Rc8 {[%clk 0:00:47]} 32. Rxc8 {[%clk 0:00:36]}  Kxc8 {[%clk 0:00:48]} 33. Qc2+ {[%clk 0:00:34]}  Kb7 {[%clk 0:00:47]} 34. Qa4 {[%clk 0:00:34]}  Qa7 {[%clk 0:00:40]} 35. Qxa7+ {[%clk 0:00:12]}  Kxa7 {[%clk 0:00:40]} 36. Ba5 {[%clk 0:00:10]}  Ne3 {[%clk 0:00:40]} 37. Kf2 {[%clk 0:00:08]}  Nc4 {[%clk 0:00:40]} 38. Bc3 {[%clk 0:00:07]}  Kb6 {[%clk 0:00:41]} 39. Ke2 {[%clk 0:00:06]}  Kxb5 {[%clk 0:00:41]} 40. Be1 {[%clk 0:00:06]}  Na3 {[%clk 0:00:36]} 41. Kd3 {[%clk 0:00:06]}  Nc4 {[%clk 0:00:24]} 42. Bxh4 {[%clk 0:00:07]}  Bxh4 {[%clk 0:00:24]} 43. Nxh4 {[%clk 0:00:08]}  Nb2+ {[%clk 0:00:25]} 44. Kc2 {[%clk 0:00:07]}  Nc4 {[%clk 0:00:22]} 45. Kd3 {[%clk 0:00:07]}  Nb2+ {[%clk 0:00:22]} 46. Kd2 {[%clk 0:00:07]}  Kc4 {[%clk 0:00:21]} 47. Nf3 {[%clk 0:00:07]}  Na4 {[%clk 0:00:20]} 48. h4 {[%clk 0:00:07]}  Nb6 {[%clk 0:00:20]} 49. g4 {[%clk 0:00:07]}  Nd7 {[%clk 0:00:20]} 50. Ke3 {[%clk 0:00:08]}  Nf8 {[%clk 0:00:20]} 51. Ng5 {[%clk 0:00:08]}  Kc3 {[%clk 0:00:18]} 52. h5 {[%clk 0:00:07]}  gxh5 {[%clk 0:00:18]} 53. gxh5 {[%clk 0:00:08]}  Kc4 {[%clk 0:00:18]} 54. h6 {[%clk 0:00:09]} 1-0


[Site "https://www.chess.com"]

[Event "Titled Tuesday Blitz October 11 Late 2022"]
[White "Arnold, Ken"]
[Black "Nozdrachev, Leonid"]
[WhiteFideId "2056836"]
[BlackFideId "24113433"]
[WhiteElo "2354"]
[BlackElo "2249"]
[Result "0-1"]
[Round "02"]
[TimeControl "180+1"]
[Date "2022.10.12"]
[WhiteClock "0:00:11"]
[BlackClock "0:00:26"]

1. d4 {[%clk 0:03:00]}  Nf6 {[%clk 0:02:59]} 2. c4 {[%clk 0:03:01]}  e5 {[%clk 0:02:58]} 3. d5 {[%clk 0:03:00]}  Bc5 {[%clk 0:02:56]} 4. Nc3 {[%clk 0:03:00]}  d6 {[%clk 0:02:55]} 5. Nf3 {[%clk 0:02:58]}  a6 {[%clk 0:02:53]} 6. h3 {[%clk 0:02:57]}  O-O {[%clk 0:02:53]} 7. Bg5 {[%clk 0:02:55]}  b5 {[%clk 0:02:48]} 8. e3 {[%clk 0:02:51]}  b4 {[%clk 0:02:44]} 9. Ne4 {[%clk 0:02:48]}  Nbd7 {[%clk 0:02:35]} 10. Nxc5 {[%clk 0:02:46]}  Nxc5 {[%clk 0:02:36]} 11. Be2 {[%clk 0:02:41]}  h6 {[%clk 0:02:25]} 12. Bxf6 {[%clk 0:02:37]}  Qxf6 {[%clk 0:02:26]} 13. O-O {[%clk 0:02:31]}  Qg6 {[%clk 0:02:21]} 14. Kh2 {[%clk 0:02:25]}  f5 {[%clk 0:02:18]} 15. Nd2 {[%clk 0:02:11]}  f4 {[%clk 0:02:14]} 16. Bh5 {[%clk 0:02:00]}  Qg5 {[%clk 0:02:08]} 17. e4 {[%clk 0:01:54]}  Bd7 {[%clk 0:01:48]} 18. Bg4 {[%clk 0:01:48]}  f3 {[%clk 0:01:32]} 19. Nxf3 {[%clk 0:01:35]}  Qf4+ {[%clk 0:01:28]} 20. g3 {[%clk 0:01:33]}  Qxe4 {[%clk 0:01:27]} 21. Re1 {[%clk 0:01:22]}  Qxc4 {[%clk 0:01:24]} 22. Rc1 {[%clk 0:01:17]}  Qxa2 {[%clk 0:01:22]} 23. Bxd7 {[%clk 0:01:11]}  Nxd7 {[%clk 0:01:23]} 24. Rxc7 {[%clk 0:01:08]}  Nc5 {[%clk 0:01:19]} 25. Rxc5 {[%clk 0:01:03]}  dxc5 {[%clk 0:01:18]} 26. d6 {[%clk 0:00:56]}  Qxb2 {[%clk 0:01:16]} 27. Qd5+ {[%clk 0:00:51]}  Kh8 {[%clk 0:01:14]} 28. Kg2 {[%clk 0:00:48]}  Rad8 {[%clk 0:01:01]} 29. Rxe5 {[%clk 0:00:43]}  Rxf3 {[%clk 0:00:37]} 30. Kxf3 {[%clk 0:00:41]}  Qd4 {[%clk 0:00:37]} 31. Qxd4 {[%clk 0:00:41]}  cxd4 {[%clk 0:00:38]} 32. Rd5 {[%clk 0:00:39]}  b3 {[%clk 0:00:34]} 33. Rxd4 {[%clk 0:00:37]}  a5 {[%clk 0:00:33]} 34. Rd5 {[%clk 0:00:27]}  a4 {[%clk 0:00:30]} 35. Rb5 {[%clk 0:00:15]}  Rxd6 {[%clk 0:00:29]} 36. Ke4 {[%clk 0:00:13]}  Ra6 {[%clk 0:00:27]} 37. Kd3 {[%clk 0:00:13]}  a3 {[%clk 0:00:26]} 38. Rxb3 {[%clk 0:00:11]}  a2 {[%clk 0:00:26]} 0-1


[Site "https://www.chess.com"]

[Event "Titled Tuesday Blitz October 11 Late 2022"]
[White "Balkum, Alexander"]
[Black "Makaraci, Tunahan"]
[WhiteFideId "2005069"]
[BlackFideId "6356559"]
[WhiteElo "2351"]
[BlackElo "2175"]
[Result "0-1"]
[Round "02"]
[TimeControl "180+1"]
[Date "2022.10.12"]
[WhiteClock "0:00:12"]
[BlackClock "0:00:16"]

1. e4 {[%clk 0:03:00]}  Nf6 {[%clk 0:02:59]} 2. e5 {[%clk 0:03:00]}  Nd5 {[%clk 0:03:00]} 3. c4 {[%clk 0:03:00]}  Nb6 {[%clk 0:03:00]} 4. d4 {[%clk 0:03:01]}  d6 {[%clk 0:03:00]} 5. exd6 {[%clk 0:03:01]}  cxd6 {[%clk 0:03:01]} 6. Nc3 {[%clk 0:03:01]}  g6 {[%clk 0:03:02]} 7. Be3 {[%clk 0:03:01]}  Bg7 {[%clk 0:03:02]} 8. b3 {[%clk 0:03:02]}  O-O {[%clk 0:03:02]} 9. Rc1 {[%clk 0:03:02]}  Bf5 {[%clk 0:03:01]} 10. g4 {[%clk 0:02:58]}  Bd7 {[%clk 0:03:00]} 11. Bg2 {[%clk 0:02:52]}  Nc6 {[%clk 0:02:59]} 12. d5 {[%clk 0:02:48]}  Ne5 {[%clk 0:02:46]} 13. h3 {[%clk 0:02:48]}  f5 {[%clk 0:02:39]} 14. f4 {[%clk 0:02:44]}  Nf7 {[%clk 0:02:38]} 15. g5 {[%clk 0:02:42]}  e5 {[%clk 0:02:33]} 16. dxe6 {[%clk 0:02:41]}  Bxe6 {[%clk 0:02:33]} 17. Bxb7 {[%clk 0:02:32]}  Re8 {[%clk 0:02:32]} 18. Kf2 {[%clk 0:02:31]}  Rb8 {[%clk 0:02:23]} 19. Bc6 {[%clk 0:02:27]}  Bd7 {[%clk 0:02:21]} 20. Bxd7 {[%clk 0:02:19]}  Nxd7 {[%clk 0:02:16]} 21. Nf3 {[%clk 0:02:17]}  Rxe3 {[%clk 0:02:10]} 22. Kxe3 {[%clk 0:02:17]}  Qb6+ {[%clk 0:02:10]} 23. Kd2 {[%clk 0:01:45]}  Nc5 {[%clk 0:02:04]} 24. Re1 {[%clk 0:01:37]}  Qa5 {[%clk 0:01:58]} 25. Re3 {[%clk 0:00:51]}  Ne4+ {[%clk 0:01:45]} 26. Rxe4 {[%clk 0:00:49]}  fxe4 {[%clk 0:01:45]} 27. Ne1 {[%clk 0:00:49]}  e3+ {[%clk 0:01:32]} 28. Kd3 {[%clk 0:00:43]}  Qf5+ {[%clk 0:01:26]} 29. Ke2 {[%clk 0:00:29]}  Qxf4 {[%clk 0:01:25]} 30. Qd5 {[%clk 0:00:30]}  Qf2+ {[%clk 0:01:13]} 31. Kd1 {[%clk 0:00:30]}  Bxc3 {[%clk 0:00:48]} 32. Rxc3 {[%clk 0:00:29]}  e2+ {[%clk 0:00:44]} 33. Kd2 {[%clk 0:00:25]}  Qf4+ {[%clk 0:00:41]} 34. Kc2 {[%clk 0:00:20]}  Qxg5 {[%clk 0:00:38]} 35. Qxg5 {[%clk 0:00:16]}  Nxg5 {[%clk 0:00:39]} 36. Re3 {[%clk 0:00:17]}  Nxh3 {[%clk 0:00:38]} 37. Rxh3 {[%clk 0:00:16]}  Re8 {[%clk 0:00:36]} 38. Kd2 {[%clk 0:00:16]}  Kg7 {[%clk 0:00:35]} 39. Re3 {[%clk 0:00:16]}  Rf8 {[%clk 0:00:28]} 40. Rxe2 {[%clk 0:00:16]}  g5 {[%clk 0:00:28]} 41. Nd3 {[%clk 0:00:15]}  h5 {[%clk 0:00:28]} 42. b4 {[%clk 0:00:16]}  h4 {[%clk 0:00:26]} 43. c5 {[%clk 0:00:16]}  dxc5 {[%clk 0:00:26]} 44. bxc5 {[%clk 0:00:16]}  g4 {[%clk 0:00:26]} 45. c6 {[%clk 0:00:14]}  g3 {[%clk 0:00:24]} 46. Ne5 {[%clk 0:00:13]}  h3 {[%clk 0:00:21]} 47. Ng4 {[%clk 0:00:13]}  g2 {[%clk 0:00:19]} 48. Re1 {[%clk 0:00:13]}  Rf1 {[%clk 0:00:18]} 49. c7 {[%clk 0:00:11]}  g1=Q {[%clk 0:00:17]} 50. Re7+ {[%clk 0:00:11]}  Kg6 {[%clk 0:00:17]} 51. c8=Q {[%clk 0:00:12]}  Qd4+ {[%clk 0:00:16]} 52. Ke2 {[%clk 0:00:11]}  Qd1+ {[%clk 0:00:16]} 53. Ke3 {[%clk 0:00:11]}  Rf3+ {[%clk 0:00:16]} 54. Ke4 {[%clk 0:00:11]}  Qd3+ {[%clk 0:00:16]} 55. Ke5 {[%clk 0:00:12]}  Rf5+ {[%clk 0:00:16]} 56. Ke6 {[%clk 0:00:12]}  Qd5# {[%clk 0:00:16]} 0-1


[Site "https://www.chess.com"]

[Event "Titled Tuesday Blitz October 11 Late 2022"]
[White "Baltaci, Ismail Tarik"]
[Black "Salman, Pavel"]
[WhiteFideId "6365213"]
[BlackFideId "24153753"]
[WhiteElo "2337"]
[BlackElo "2187"]
[Result "1-0"]
[Round "02"]
[TimeControl "180+1"]
[Date "2022.10.12"]
[WhiteClock "0:01:18"]
[BlackClock "0:00:20"]

1. e4 {[%clk 0:02:59]}  c5 {[%clk 0:02:59]} 2. Nf3 {[%clk 0:02:59]}  e6 {[%clk 0:02:58]} 3. d4 {[%clk 0:02:56]}  cxd4 {[%clk 0:02:59]} 4. Nxd4 {[%clk 0:02:57]}  a6 {[%clk 0:03:00]} 5. b3 {[%clk 0:02:52]}  Nf6 {[%clk 0:02:58]} 6. Nd2 {[%clk 0:02:51]}  Bc5 {[%clk 0:02:56]} 7. Bb2 {[%clk 0:02:50]}  Nc6 {[%clk 0:02:54]} 8. Nxc6 {[%clk 0:02:48]}  dxc6 {[%clk 0:02:55]} 9. Bd3 {[%clk 0:02:46]}  Qe7 {[%clk 0:02:44]} 10. O-O {[%clk 0:02:42]}  e5 {[%clk 0:02:44]} 11. Nc4 {[%clk 0:02:39]}  Ng4 {[%clk 0:02:43]} 12. h3 {[%clk 0:02:32]}  h5 {[%clk 0:02:43]} 13. Qf3 {[%clk 0:02:24]}  b5 {[%clk 0:02:33]} 14. Ne3 {[%clk 0:02:10]}  Nxe3 {[%clk 0:02:11]} 15. fxe3 {[%clk 0:02:11]}  Bg4 {[%clk 0:02:05]} 16. hxg4 {[%clk 0:02:06]}  hxg4 {[%clk 0:02:06]} 17. Qg3 {[%clk 0:02:06]}  Bxe3+ {[%clk 0:01:09]} 18. Qxe3 {[%clk 0:02:02]}  Qh4 {[%clk 0:01:10]} 19. Bxe5 {[%clk 0:01:55]}  O-O {[%clk 0:01:00]} 20. Qg3 {[%clk 0:01:53]}  Qh5 {[%clk 0:00:57]} 21. Rf5 {[%clk 0:01:52]}  Qh6 {[%clk 0:00:56]} 22. Raf1 {[%clk 0:01:49]}  Rae8 {[%clk 0:00:55]} 23. Bd6 {[%clk 0:01:41]}  f6 {[%clk 0:00:48]} 24. Bxf8 {[%clk 0:01:40]}  Rxf8 {[%clk 0:00:48]} 25. Qxg4 {[%clk 0:01:39]}  Qe3+ {[%clk 0:00:47]} 26. R5f2 {[%clk 0:01:37]}  c5 {[%clk 0:00:45]} 27. Qf3 {[%clk 0:01:36]}  Qd4 {[%clk 0:00:45]} 28. c3 {[%clk 0:01:32]}  Qe5 {[%clk 0:00:42]} 29. Qf5 {[%clk 0:01:27]}  Qxc3 {[%clk 0:00:40]} 30. Qd5+ {[%clk 0:01:27]}  Rf7 {[%clk 0:00:38]} 31. e5 {[%clk 0:01:24]}  f5 {[%clk 0:00:20]} 32. Rxf5 {[%clk 0:01:18]} 1-0


[Site "https://www.chess.com"]